[Event "EYCC Open-U14 2019"]
[Site "Bratislava"]
[Date "2019.08.04"]
[Round "3.24"]
[White "Adamia, Jaba"]
[Black "Oglaza, Oskar"]
[Result "0-1"]
[ECO "D03"]
[WhiteElo "1819"]
[BlackElo "2345"]
[Annotator "NA"]
[PlyCount "106"]
[EventDate "2019.08.02"]
[EventType "swiss"]
[EventCountry "SVK"]
[SourceTitle "playchess.com"]
[Source "ChessBase"]
[SourceQuality "1"]
[TimeControl "40/5400+30:1800+30"]

1. d4 {[%emt 0:00:00]} Nf6 {[%emt 0:00:00]} 2. Bg5 {[%emt 0:00:00]} d5 {[%emt 0:00:00]} 3. Nf3 {[%emt 0:07:12]} c5 {[%emt 0:00:44]} 4. e3 {[%emt 0:07:43]} Nc6 {[%emt 0:00:31]} 5. c3 {[%emt 0:02:32]} Qb6 {[%emt 0:18:58]} 6. Qc1 {[%emt 0:09:01]} Bg4 {[%emt 0:05:14]} 7. Nbd2 {[%emt 0:03:32]} Rc8 {[%emt 0:03:27]} 8. Qb1 {[%emt 0:10:14]} e6 {[%emt 0:25:58]} 9. Bd3 {[%emt 0:02:25]} Be7 {[%emt 0:04:29]} 10. O-O {[%emt 0:01:17]} Nd7 {[%emt 0:03:58]} 11. Bxh7 {[%emt 0:28:29]} Qd8 {[%emt 0:08:14]} 12. Bf4 {[%emt 0:07:50]} g5 {[%emt 0:03:41]} 13. Bg3 {[%emt 0:01:30]} Bxf3 {[%emt 0:02:21]} 14. Nxf3 {[%emt 0:00:49]} g4 {[%emt 0:00:03]} 15. Ne5 {[%emt 0:01:02]} Ndxe5 {[%emt 0:06:44]} 16. dxe5 {[%emt 0:00:32]} Bh4 {[%emt 0:00:27]} 17. Bf4 {[%emt 0:04:33]} Qe7 {[%emt 0:00:17]} 18. Bc2 {[%emt 0:01:37]} Kd7 {[%emt 0:02:05]} 19. e4 {[%emt 0:01:24]} d4 {[%emt 0:00:24]} 20. Ba4 {[%emt 0:03:33]} Bg5 {[%emt 0:02:06]} 21. Bg3 {[%emt 0:02:01]} Kc7 {[%emt 0:05:17]} 22. Bxc6 {[%emt 0:00:46]} bxc6 {[%emt 0:00:11]} 23. cxd4 {[%emt 0:00:48]} cxd4 {[%emt 0:00:04]} 24. b4 {[%emt 0:01:35]} Bd2 {[%emt 0:03:45]} 25. Qd3 {[%emt 0:01:28]} Bc3 {[%emt 0:01:55]} 26. Rab1 {[%emt 0:00:18]} Kb7 {[%emt 0:01:06]} 27. a4 {[%emt 0:00:47]} Qc7 {[%emt 0:00:26]} 28. Rb3 {[%emt 0:00:27]} Ka8 {[%emt 0:00:14]} 29. Qc4 {[%emt 0:00:17]} Rhd8 {[%emt 0:00:42]} 30. Rd1 {[%emt 0:00:46]} Qb6 {[%emt 0:00:31]} 31. Rd3 {[%emt 0:00:31]} c5 {[%emt 0:00:44]} 32. b5 {[%emt 0:00:24]} Bb4 {[%emt 0:00:27]} 33. Rb1 {[%emt 0:00:35]} Qa5 {[%emt 0:00:25]} 34. Ra1 {[%emt 0:00:23]} Bc3 {[%emt 0:00:04]} 35. Rc1 {[%emt 0:00:36]} Qb4 {[%emt 0:00:42]} 36. Qxb4 {[%emt 0:00:05]} Bxb4 {[%emt 0:00:51]} 37. Rc4 {[%emt 0:00:14]} Kb7 {[%emt 0:00:00]} 38. Bf4 {[%emt 0:00:22]} Kb6 {[%emt 0:00:36]} 39. Bd2 {[%emt 0:00:48]} Ka5 {[%emt 0:00:05]} 40. f3 {[%emt 0:00:00]} gxf3 {[%emt 0:00:00]} 41. gxf3 {[%emt 0:11:53]} Kxa4 {[%emt 0:01:04]} 42. Bxb4 {[%emt 0:02:12]} cxb4 {[%emt 0:00:59]} 43. Rxc8 {[%emt 0:00:09]} Rxc8 {[%emt 0:00:03]} 44. Rxd4 {[%emt 0:00:02]} Kxb5 {[%emt 0:00:05]} 45. Rd7 {[%emt 0:00:28]} a5 {[%emt 0:00:03]} 46. h4 {[%emt 0:00:17]} b3 {[%emt 0:00:37]} 47. h5 {[%emt 0:00:13]} a4 {[%emt 0:00:52]} 48. Rb7+ {[%emt 0:00:45]} Kc4 {[%emt 0:00:27]} 49. h6 {[%emt 0:00:09]} a3 {[%emt 0:00:08]} 50. h7 {[%emt 0:00:16]} a2 {[%emt 0:00:07]} 51. Rc7+ {[%emt 0:00:21]} Rxc7 {[%emt 0:00:04]} 52. h8=Q {[%emt 0:00:08]} a1=Q+ {[%emt 0:00:05]} 53. Kg2 {[%emt 0:00:08]} b2 {[%emt 0:00:57]} 0-1

[Event "EYCC Open-U14 2019"]
[Site "Bratislava"]
[Date "2019.08.04"]
[Round "3.25"]
[White "Musyuk, Lior"]
[Black "Silva, Pedro Gil Ferreira D"]
[Result "1-0"]
[ECO "B15"]
[WhiteElo "2236"]
[BlackElo "2049"]
[Annotator "NA"]
[PlyCount "95"]
[EventDate "2019.08.02"]
[EventType "swiss"]
[EventCountry "SVK"]
[SourceTitle "playchess.com"]
[Source "ChessBase"]
[SourceQuality "1"]
[TimeControl "40/5400+30:1800+30"]

1. e4 {[%emt 0:00:00]} c6 {[%emt 0:00:00]} 2. d4 {[%emt 0:00:00]} d5 {[%emt 0:00:00]} 3. Nc3 {[%emt 0:00:13]} dxe4 {[%emt 0:00:03]} 4. Nxe4 {[%emt 0:00:16]} Nf6 {[%emt 0:00:08]} 5. Nxf6+ {[%emt 0:00:30]} exf6 {[%emt 0:00:15]} 6. c3 {[%emt 0:00:43]} Bd6 {[%emt 0:00:12]} 7. Bd3 {[%emt 0:00:26]} O-O {[%emt 0:00:09]} 8. Ne2 {[%emt 0:00:22]} Re8 {[%emt 0:00:58]} 9. Qc2 {[%emt 0:03:39]} h5 {[%emt 0:00:40]} 10. O-O {[%emt 0:02:11]} h4 {[%emt 0:03:38]} 11. h3 {[%emt 0:00:18]} Nd7 {[%emt 0:01:12]} 12. Be3 {[%emt 0:04:20]} Nf8 {[%emt 0:03:30]} 13. Rad1 {[%emt 0:02:55]} Bc7 {[%emt 0:07:33]} 14. Rfe1 {[%emt 0:04:50]} g5 {[%emt 0:20:26]} 15. Kf1 {[%emt 0:27:21]} Qd6 {[%emt 0:23:03]} 16. Ng1 {[%emt 0:01:26]} Be6 {[%emt 0:08:27]} 17. a3 {[%emt 0:06:15]} Rad8 {[%emt 0:11:28]} 18. c4 {[%emt 0:04:23]} Kg7 {[%emt 0:05:40]} 19. Bf5 {[%emt 0:14:55]} Bxf5 {[%emt 0:05:20]} 20. Qxf5 {[%emt 0:00:03]} Qe6 {[%emt 0:00:52]} 21. Qc2 {[%emt 0:01:57]} Qd7 {[%emt 0:02:44]} 22. Nf3 {[%emt 0:02:06]} Ng6 {[%emt 0:00:47]} 23. d5 {[%emt 0:02:03]} Be5 {[%emt 0:02:25]} 24. dxc6 {[%emt 0:02:30]} Qxc6 {[%emt 0:00:24]} 25. Rxd8 {[%emt 0:01:09]} Rxd8 {[%emt 0:00:04]} 26. Bxg5 {[%emt 0:00:24]} fxg5 {[%emt 0:01:50]} 27. Nxe5 {[%emt 0:00:19]} Nxe5 {[%emt 0:00:37]} 28. Rxe5 {[%emt 0:00:09]} Qf6 {[%emt 0:00:08]} 29. Qf5 {[%emt 0:02:18]} Qxf5 {[%emt 0:00:27]} 30. Rxf5 {[%emt 0:00:01]} Kg6 {[%emt 0:00:38]} 31. Rb5 {[%emt 0:01:51]} b6 {[%emt 0:00:34]} 32. Ke2 {[%emt 0:02:02]} Rd4 {[%emt 0:00:51]} 33. b3 {[%emt 0:00:45]} g4 {[%emt 0:00:13]} 34. hxg4 {[%emt 0:02:54]} Rxg4 {[%emt 0:00:15]} 35. Kf3 {[%emt 0:00:49]} Rd4 36. Rd5 {[%emt 0:00:52]} Rxd5 {[%emt 0:01:17]} 37. cxd5 {[%emt 0:00:14]} Kf5 {[%emt 0:00:09]} 38. d6 {[%emt 0:00:56]} Ke6 {[%emt 0:00:06]} 39. Kg4 {[%emt 0:00:27]} Kxd6 {[%emt 0:00:07]} 40. Kxh4 {[%emt 0:00:00]} a5 {[%emt 0:00:00]} 41. Kg5 {[%emt 0:01:40]} Ke6 {[%emt 0:02:09]} 42. f4 {[%emt 0:00:38]} b5 {[%emt 0:00:06]} 43. f5+ {[%emt 0:02:23]} Ke5 {[%emt 0:00:08]} 44. g4 {[%emt 0:00:23]} b4 {[%emt 0:00:25]} 45. axb4 {[%emt 0:01:39]} axb4 {[%emt 0:00:06]} 46. Kh6 {[%emt 0:00:13]} Kf6 {[%emt 0:01:54]} 47. Kh7 {[%emt 0:00:20]} Ke7 {[%emt 0:00:36]} 48. g5 {[%emt 0:00:41]} 1-0

[Event "EYCC Open-U14 2019"]
[Site "Bratislava"]
[Date "2019.08.04"]
[Round "3.26"]
[White "Tadic, Stefan"]
[Black "Hulka, Valentyn"]
[Result "1-0"]
[ECO "B40"]
[WhiteElo "2262"]
[BlackElo "1788"]
[Annotator "NA"]
[PlyCount "79"]
[EventDate "2019.08.02"]
[EventType "swiss"]
[EventCountry "SVK"]
[SourceTitle "playchess.com"]
[Source "ChessBase"]
[SourceQuality "1"]
[TimeControl "40/5400+30:1800+30"]

1. e4 {[%emt 0:00:00]} c5 {[%emt 0:00:00]} 2. Nf3 {[%emt 0:00:00]} e6 {[%emt 0:00:00]} 3. c4 {[%emt 0:00:00]} Nc6 {[%emt 0:00:00]} 4. Nc3 {[%emt 0:00:00]} d6 {[%emt 0:00:26]} 5. d4 {[%emt 0:01:32]} cxd4 {[%emt 0:00:05]} 6. Nxd4 {[%emt 0:00:03]} Nf6 {[%emt 0:00:07]} 7. Be2 {[%emt 0:00:19]} Be7 {[%emt 0:00:09]} 8. O-O {[%emt 0:00:08]} O-O {[%emt 0:02:41]} 9. Be3 {[%emt 0:00:52]} a6 {[%emt 0:02:32]} 10. Rc1 {[%emt 0:07:57]} Bd7 {[%emt 0:03:26]} 11. f3 {[%emt 0:00:39]} Rc8 {[%emt 0:07:45]} 12. Qd2 {[%emt 0:04:37]} Nxd4 {[%emt 0:02:18]} 13. Bxd4 {[%emt 0:03:15]} Qc7 {[%emt 0:08:40]} 14. Rfd1 {[%emt 0:02:10]} Qb8 {[%emt 0:14:18]} 15. a4 {[%emt 0:06:01]} Bc6 {[%emt 0:14:16]} 16. a5 {[%emt 0:16:16]} Nd7 {[%emt 0:10:00]} 17. b4 {[%emt 0:06:23]} b6 {[%emt 0:03:25]} 18. axb6 {[%emt 0:05:08]} Nxb6 {[%emt 0:00:06]} 19. Qa2 {[%emt 0:03:50]} Nd7 {[%emt 0:05:46]} 20. Rb1 {[%emt 0:16:36]} Bb7 {[%emt 0:02:44]} 21. Rdc1 {[%emt 0:00:59]} Bf6 {[%emt 0:02:32]} 22. Bf2 {[%emt 0:01:23]} Qc7 {[%emt 0:02:45]} 23. c5 {[%emt 0:02:37]} dxc5 {[%emt 0:00:59]} 24. bxc5 {[%emt 0:00:12]} Be7 {[%emt 0:03:33]} 25. Na4 {[%emt 0:00:33]} Qa5 {[%emt 0:00:53]} 26. Rxb7 {[%emt 0:02:51]} Bxc5 {[%emt 0:00:05]} 27. Rc2 {[%emt 0:06:02]} Bxf2+ {[%emt 0:06:06]} 28. Kxf2 {[%emt 0:00:04]} Nc5 {[%emt 0:00:10]} 29. Nxc5 {[%emt 0:00:24]} Rxc5 {[%emt 0:00:05]} 30. Qxa5 {[%emt 0:00:06]} Rxa5 {[%emt 0:00:05]} 31. Ra7 {[%emt 0:00:04]} g6 {[%emt 0:00:06]} 32. Rxa6 {[%emt 0:00:29]} Rxa6 {[%emt 0:00:05]} 33. Bxa6 {[%emt 0:00:00]} Kg7 {[%emt 0:00:09]} 34. Rc8 {[%emt 0:00:06]} Rxc8 {[%emt 0:00:04]} 35. Bxc8 {[%emt 0:00:04]} e5 {[%emt 0:00:05]} 36. Ke3 {[%emt 0:00:47]} Kh6 {[%emt 0:00:16]} 37. Kd3 {[%emt 0:00:08]} Kg5 {[%emt 0:00:05]} 38. Kc4 {[%emt 0:00:07]} f5 {[%emt 0:01:31]} 39. g3 {[%emt 0:03:16]} Kf6 {[%emt 0:00:08]} 40. Kd5 {[%emt 0:00:00]} 1-0

[Event "EYCC Open-U14 2019"]
[Site "Bratislava"]
[Date "2019.08.04"]
[Round "3.27"]
[White "Schouten, Mathias Lind"]
[Black "Fule, Simon"]
[Result "0-1"]
[ECO "C55"]
[WhiteElo "1961"]
[BlackElo "2184"]
[Annotator "NA"]
[PlyCount "100"]
[EventDate "2019.08.02"]
[EventType "swiss"]
[EventCountry "SVK"]
[SourceTitle "playchess.com"]
[Source "ChessBase"]
[SourceQuality "1"]
[TimeControl "40/5400+30:1800+30"]

1. e4 {[%emt 0:00:00]} e5 {[%emt 0:00:00]} 2. Nf3 {[%emt 0:00:00]} Nc6 {[%emt 0:00:00]} 3. Bc4 {[%emt 0:00:00]} Nf6 {[%emt 0:00:00]} 4. d3 {[%emt 0:00:00]} Be7 {[%emt 0:00:00]} 5. O-O {[%emt 0:00:01]} d6 {[%emt 0:00:00]} 6. c3 {[%emt 0:00:03]} O-O {[%emt 0:00:10]} 7. a4 {[%emt 0:00:04]} Na5 {[%emt 0:00:26]} 8. Ba2 {[%emt 0:00:04]} c5 {[%emt 0:00:09]} 9. b4 {[%emt 0:00:05]} Nc6 {[%emt 0:01:31]} 10. b5 {[%emt 0:00:05]} Nb8 {[%emt 0:00:59]} 11. h3 {[%emt 0:02:30]} h6 {[%emt 0:02:08]} 12. Re1 {[%emt 0:02:02]} Qc7 {[%emt 0:13:53]} 13. Na3 {[%emt 0:07:04]} Kh7 {[%emt 0:06:10]} 14. Nc4 {[%emt 0:09:54]} Be6 {[%emt 0:01:39]} 15. Bb2 {[%emt 0:18:59]} Nbd7 16. Rc1 {[%emt 0:00:25]} Rfe8 {[%emt 0:17:14]} 17. d4 {[%emt 0:08:33]} exd4 {[%emt 0:04:55]} 18. cxd4 {[%emt 0:02:46]} d5 {[%emt 0:05:30]} 19. exd5 {[%emt 0:07:17]} Bxd5 {[%emt 0:00:56]} 20. Bb1+ {[%emt 0:00:26]} Kg8 {[%emt 0:07:09]} 21. Ne3 {[%emt 0:00:25]} Bxf3 {[%emt 0:16:40]} 22. Qxf3 {[%emt 0:00:22]} b6 {[%emt 0:00:27]} 23. Nf5 {[%emt 0:02:44]} Bf8 {[%emt 0:00:23]} 24. dxc5 {[%emt 0:01:04]} bxc5 {[%emt 0:01:42]} 25. Nxh6+ {[%emt 0:00:48]} gxh6 {[%emt 0:00:06]} 26. Bxf6 {[%emt 0:00:06]} Nxf6 {[%emt 0:00:09]} 27. Qxf6 {[%emt 0:00:08]} Bg7 {[%emt 0:00:42]} 28. Qf5 {[%emt 0:01:17]} c4 {[%emt 0:01:05]} 29. Be4 {[%emt 0:08:02]} Rad8 {[%emt 0:00:34]} 30. Re3 {[%emt 0:00:24]} c3 {[%emt 0:04:32]} 31. Rg3 {[%emt 0:05:59]} Qe5 {[%emt 0:01:54]} 32. Qh7+ {[%emt 0:19:21]} Kf8 {[%emt 0:00:01]} 33. Bc6 {[%emt 0:00:46]} Re6 {[%emt 0:01:15]} 34. Kh2 {[%emt 0:00:54]} Rg6 {[%emt 0:01:57]} 35. Rcxc3 {[%emt 0:01:49]} Qxc3 {[%emt 0:05:16]} 36. Rxc3 {[%emt 0:00:04]} Bxc3 {[%emt 0:00:05]} 37. Be4 {[%emt 0:00:05]} Rf6 {[%emt 0:00:25]} 38. Bc6 {[%emt 0:02:02]} Be5+ {[%emt 0:04:08]} 39. g3 {[%emt 0:00:09]} Rxf2+ {[%emt 0:00:06]} 40. Kg1 {[%emt 0:00:00]} Rf6 {[%emt 0:00:00]} 41. Qb1 {[%emt 0:02:45]} Bxg3 {[%emt 0:08:22]} 42. Qc1 {[%emt 0:01:00]} Kg7 {[%emt 0:01:58]} 43. a5 {[%emt 0:06:10]} Bf2+ {[%emt 0:08:25]} 44. Kg2 {[%emt 0:00:05]} Rdd6 {[%emt 0:02:57]} 45. Qb2 {[%emt 0:14:08]} Bd4 {[%emt 0:01:36]} 46. Qb4 {[%emt 0:00:05]} Rf2+ {[%emt 0:05:30]} 47. Kh1 {[%emt 0:00:18]} Be5 {[%emt 0:00:08]} 48. Qe1 {[%emt 0:00:53]} Rh2+ {[%emt 0:01:23]} 49. Kg1 {[%emt 0:00:05]} Rg6+ {[%emt 0:00:06]} 50. Kf1 {[%emt 0:00:05]} Bd4 {[%emt 0:00:14]} 0-1

[Event "EYCC Open-U14 2019"]
[Site "Bratislava"]
[Date "2019.08.04"]
[Round "3.28"]
[White "Kalosha, Zhiulien Oleksii"]
[Black "Guz, Ari"]
[Result "0-1"]
[ECO "B43"]
[WhiteElo "1936"]
[BlackElo "2165"]
[Annotator "NA"]
[PlyCount "88"]
[EventDate "2019.08.02"]
[EventType "swiss"]
[EventCountry "SVK"]
[SourceTitle "playchess.com"]
[Source "ChessBase"]
[SourceQuality "1"]
[TimeControl "40/5400+30:1800+30"]

1. e4 {[%emt 0:00:00]} c5 {[%emt 0:00:00]} 2. Nf3 {[%emt 0:00:00]} e6 {[%emt 0:00:00]} 3. d4 {[%emt 0:00:00]} cxd4 {[%emt 0:00:00]} 4. Nxd4 {[%emt 0:00:00]} a6 {[%emt 0:00:04]} 5. Nc3 {[%emt 0:00:00]} Qc7 {[%emt 0:00:09]} 6. Bd3 {[%emt 0:00:26]} Bc5 {[%emt 0:00:10]} 7. Be3 {[%emt 0:00:08]} Nf6 {[%emt 0:00:31]} 8. O-O {[%emt 0:00:26]} b5 {[%emt 0:00:24]} 9. a3 {[%emt 0:00:37]} O-O {[%emt 0:00:44]} 10. Kh1 {[%emt 0:00:47]} d6 {[%emt 0:02:14]} 11. Re1 {[%emt 0:13:12]} Qa7 {[%emt 0:08:33]} 12. Nb3 {[%emt 0:06:29]} Bxe3 {[%emt 0:04:35]} 13. Rxe3 {[%emt 0:00:21]} Nc6 {[%emt 0:02:26]} 14. Qe2 {[%emt 0:07:41]} Ne5 {[%emt 0:02:21]} 15. h3 {[%emt 0:02:02]} Ng6 {[%emt 0:01:26]} 16. Qd2 {[%emt 0:07:59]} Bb7 {[%emt 0:04:24]} 17. Na5 {[%emt 0:04:03]} d5 {[%emt 0:05:09]} 18. exd5 {[%emt 0:04:03]} Nxd5 {[%emt 0:02:20]} 19. Rg3 {[%emt 0:03:10]} Nxc3 {[%emt 0:04:15]} 20. Qxc3 {[%emt 0:02:41]} Bd5 {[%emt 0:01:08]} 21. Rf1 {[%emt 0:02:17]} Rac8 {[%emt 0:04:10]} 22. Qd2 {[%emt 0:00:40]} Qc7 {[%emt 0:02:18]} 23. b4 {[%emt 0:11:01]} Nf4 {[%emt 0:05:11]} 24. Qe3 {[%emt 0:07:08]} f5 {[%emt 0:05:23]} 25. Rc1 {[%emt 0:02:53]} Nxd3 {[%emt 0:11:36]} 26. Qxd3 {[%emt 0:00:14]} Rfd8 {[%emt 0:00:27]} 27. Qf1 {[%emt 0:03:04]} e5 {[%emt 0:06:38]} 28. Rg5 {[%emt 0:01:40]} g6 {[%emt 0:03:48]} 29. h4 {[%emt 0:00:52]} Kf7 {[%emt 0:03:47]} 30. h5 {[%emt 0:01:20]} Kf6 {[%emt 0:01:31]} 31. Rg3 {[%emt 0:01:01]} g5 {[%emt 0:00:19]} 32. Qe2 {[%emt 0:00:58]} Bc4 {[%emt 0:04:45]} 33. Nxc4 {[%emt 0:04:43]} Qxc4 {[%emt 0:00:09]} 34. Qe1 {[%emt 0:01:27]} Rd4 {[%emt 0:08:31]} 35. Kg1 {[%emt 0:01:01]} Qd5 {[%emt 0:01:53]} 36. Rh3 {[%emt 0:06:24]} e4 {[%emt 0:01:55]} 37. a4 {[%emt 0:02:18]} Rd2 {[%emt 0:02:36]} 38. axb5 {[%emt 0:00:17]} axb5 {[%emt 0:00:01]} 39. c3 {[%emt 0:03:16]} Rd8 {[%emt 0:00:25]} 40. Qe3 {[%emt 0:00:00]} Qe5 {[%emt 0:00:00]} 41. g3 {[%emt 0:03:29]} Qc7 {[%emt 0:04:38]} 42. h6 {[%emt 0:07:05]} R8d3 {[%emt 0:00:15]} 43. Qe1 {[%emt 0:01:34]} Qd6 {[%emt 0:00:11]} 44. Kg2 {[%emt 0:01:25]} e3 {[%emt 0:00:09]} 0-1

[Event "EYCC Open-U14 2019"]
[Site "Bratislava"]
[Date "2019.08.04"]
[Round "3.29"]
[White "Luczak, Filip"]
[Black "Talibov, Shiroghlan"]
[Result "1/2-1/2"]
[ECO "E06"]
[WhiteElo "2144"]
[BlackElo "1882"]
[Annotator "NA"]
[PlyCount "81"]
[EventDate "2019.08.02"]
[EventType "swiss"]
[EventCountry "SVK"]
[SourceTitle "playchess.com"]
[Source "ChessBase"]
[SourceQuality "1"]
[TimeControl "40/5400+30:1800+30"]

1. d4 {[%emt 0:00:00]} Nf6 {[%emt 0:00:00]} 2. c4 {[%emt 0:00:00]} e6 {[%emt 0:00:00]} 3. g3 {[%emt 0:00:00]} d5 {[%emt 0:00:48]} 4. Bg2 {[%emt 0:00:00]} Be7 {[%emt 0:00:12]} 5. Nf3 {[%emt 0:00:00]} O-O {[%emt 0:00:09]} 6. O-O {[%emt 0:00:00]} dxc4 {[%emt 0:00:09]} 7. Ne5 {[%emt 0:00:01]} Nc6 {[%emt 0:03:14]} 8. Bxc6 {[%emt 0:01:36]} bxc6 {[%emt 0:00:17]} 9. Nxc6 {[%emt 0:00:05]} Qe8 {[%emt 0:00:39]} 10. Nxe7+ {[%emt 0:00:06]} Qxe7 {[%emt 0:00:03]} 11. Qc2 {[%emt 0:00:03]} Ba6 {[%emt 0:01:58]} 12. Qa4 {[%emt 0:07:35]} Qd6 {[%emt 0:03:54]} 13. Nc3 {[%emt 0:05:54]} Qb6 {[%emt 0:03:28]} 14. Bg5 {[%emt 0:12:57]} Nd5 {[%emt 0:05:49]} 15. e4 {[%emt 0:05:43]} Nxc3 {[%emt 0:04:24]} 16. bxc3 {[%emt 0:00:10]} Qb5 {[%emt 0:00:45]} 17. Qxb5 {[%emt 0:01:32]} Bxb5 {[%emt 0:01:11]} 18. Rab1 {[%emt 0:00:33]} Bc6 {[%emt 0:01:01]} 19. f3 {[%emt 0:02:50]} f5 {[%emt 0:06:02]} 20. exf5 {[%emt 0:03:14]} Rxf5 {[%emt 0:02:36]} 21. Bf4 {[%emt 0:09:34]} Raf8 {[%emt 0:01:01]} 22. Rb4 {[%emt 0:21:44]} Bd5 {[%emt 0:05:47]} 23. Rbb1 {[%emt 0:04:34]} g5 {[%emt 0:02:51]} 24. Bxc7 {[%emt 0:00:24]} Rxf3 {[%emt 0:00:07]} 25. Bd6 {[%emt 0:01:41]} R8f7 {[%emt 0:01:09]} 26. Bb4 {[%emt 0:04:57]} Rd3 {[%emt 0:01:17]} 27. Rxf7 {[%emt 0:01:03]} Kxf7 {[%emt 0:00:22]} 28. Rb2 {[%emt 0:01:03]} g4 {[%emt 0:01:16]} 29. Kf2 {[%emt 0:01:38]} Kg6 {[%emt 0:00:31]} 30. Ke1 {[%emt 0:01:06]} Kf5 {[%emt 0:05:03]} 31. Rd2 {[%emt 0:00:46]} h5 {[%emt 0:00:35]} 32. a4 {[%emt 0:00:52]} a6 {[%emt 0:00:52]} 33. a5 {[%emt 0:00:45]} Bc6 {[%emt 0:02:05]} 34. Rxd3 {[%emt 0:05:01]} cxd3 {[%emt 0:01:15]} 35. Bd6 {[%emt 0:02:48]} Ke4 {[%emt 0:03:13]} 36. Kf2 {[%emt 0:00:41]} Ba4 {[%emt 0:01:15]} 37. Bf4 {[%emt 0:00:53]} Bd1 {[%emt 0:01:23]} 38. Bg5 {[%emt 0:01:15]} Be2 {[%emt 0:00:46]} 39. Bf4 {[%emt 0:00:38]} h4 {[%emt 0:00:43]} 40. Bg5 {[%emt 0:00:00]} h3 {[%emt 0:00:00]} 41. Bf4 {[%emt 0:00:22] Ke5} 1/2-1/2

[Event "EYCC Open-U14 2019"]
[Site "Bratislava"]
[Date "2019.08.04"]
[Round "3.30"]
[White "Stamatiou, Rodolfos"]
[Black "Farkas, Otto Jr."]
[Result "1-0"]
[ECO "B40"]
[WhiteElo "2121"]
[BlackElo "1913"]
[Annotator "NA"]
[PlyCount "39"]
[EventDate "2019.08.02"]
[EventType "swiss"]
[EventCountry "SVK"]
[SourceTitle "playchess.com"]
[Source "ChessBase"]
[SourceQuality "1"]
[TimeControl "40/5400+30:1800+30"]

1. e4 {[%emt 0:00:00]} c5 {[%emt 0:00:00]} 2. Nf3 {[%emt 0:00:00]} e6 {[%emt 0:00:00]} 3. d4 {[%emt 0:00:00]} cxd4 {[%emt 0:00:00]} 4. Nxd4 {[%emt 0:00:00]} Nf6 {[%emt 0:00:01]} 5. Nc3 {[%emt 0:00:12]} Nc6 {[%emt 0:00:08]} 6. Be2 {[%emt 0:00:30]} Bb4 {[%emt 0:00:14]} 7. O-O {[%emt 0:00:32]} Bxc3 {[%emt 0:12:06]} 8. bxc3 {[%emt 0:00:01]} Nxe4 {[%emt 0:04:05]} 9. Bd3 {[%emt 0:00:11]} Nf6 {[%emt 0:06:20]} 10. Ba3 {[%emt 0:04:05]} Nxd4 {[%emt 0:01:23]} 11. cxd4 {[%emt 0:00:21]} Qa5 {[%emt 0:03:17]} 12. Qc1 {[%emt 0:08:31]} b6 {[%emt 0:07:07]} 13. Rb1 {[%emt 0:05:45]} Qd5 {[%emt 0:06:58]} 14. Qf4 {[%emt 0:09:12]} Bb7 {[%emt 0:04:59]} 15. f3 {[%emt 0:01:18]} Nh5 {[%emt 0:11:22]} 16. Qe3 {[%emt 0:00:54]} O-O-O {[%emt 0:11:36]} 17. c4 {[%emt 0:07:19]} Qc6 {[%emt 0:05:48]} 18. Rfc1 {[%emt 0:07:13]} Ba6 {[%emt 0:04:47]} 19. d5 {[%emt 0:04:50]} Qa4 {[%emt 0:00:51]} 20. Bd6 {[%emt 0:03:40]} 1-0

[Event "EYCC Open-U14 2019"]
[Site "Bratislava"]
[Date "2019.08.04"]
[Round "3.31"]
[White "Antal, Hunor-Zoltan"]
[Black "Liu, Casper"]
[Result "1-0"]
[ECO "B50"]
[WhiteElo "1980"]
[BlackElo "2194"]
[Annotator "NA"]
[PlyCount "103"]
[EventDate "2019.08.02"]
[EventType "swiss"]
[EventCountry "SVK"]
[SourceTitle "playchess.com"]
[Source "ChessBase"]
[SourceQuality "1"]
[TimeControl "40/5400+30:1800+30"]

1. e4 {[%emt 0:02:18]} c5 {[%emt 0:00:00]} 2. Nf3 {[%emt 0:00:11]} d6 {[%emt 0:00:00]} 3. d4 {[%emt 0:00:07]} Nf6 {[%emt 0:00:09]} 4. dxc5 {[%emt 0:00:57]} Nxe4 {[%emt 0:00:07]} 5. cxd6 {[%emt 0:00:13]} Nc6 {[%emt 0:02:56]} 6. Bd3 {[%emt 0:06:13]} Nxd6 {[%emt 0:00:27]} 7. O-O {[%emt 0:01:38]} g6 {[%emt 0:00:26]} 8. Bd2 {[%emt 0:04:26]} Bg7 {[%emt 0:00:48]} 9. Bc3 {[%emt 0:00:07]} e5 {[%emt 0:02:11]} 10. Re1 {[%emt 0:14:58]} f6 {[%emt 0:01:05]} 11. Nbd2 {[%emt 0:00:54]} O-O {[%emt 0:01:53]} 12. Ne4 {[%emt 0:01:43]} Be6 {[%emt 0:01:47]} 13. Qe2 {[%emt 0:08:16]} Nxe4 {[%emt 0:06:12]} 14. Bxe4 {[%emt 0:00:54]} Qb6 {[%emt 0:02:19]} 15. a4 {[%emt 0:00:58]} Ne7 {[%emt 0:06:46]} 16. a5 {[%emt 0:04:58]} Qc7 {[%emt 0:00:41]} 17. Qb5 {[%emt 0:01:08]} Rab8 {[%emt 0:09:23]} 18. Bb4 {[%emt 0:19:31]} Rfd8 {[%emt 0:18:54]} 19. Qc5 Nc6 {[%emt 0:01:26]} 20. Qc3 {[%emt 0:11:14]} f5 {[%emt 0:07:11]} 21. Bxc6 {[%emt 0:00:07]} bxc6 {[%emt 0:00:03]} 22. Bc5 {[%emt 0:04:12]} e4 {[%emt 0:03:18]} 23. Nd4 {[%emt 0:02:33]} Bf7 {[%emt 0:00:20]} 24. Rad1 {[%emt 0:00:31]} Rd5 {[%emt 0:02:37]} 25. b4 {[%emt 0:02:09]} Rbd8 {[%emt 0:02:28]} 26. Qe3 {[%emt 0:00:15]} h6 {[%emt 0:05:10]} 27. c3 {[%emt 0:00:55]} g5 {[%emt 0:00:28]} 28. f3 {[%emt 0:02:37]} exf3 {[%emt 0:11:19]} 29. Qxf3 {[%emt 0:00:08]} g4 {[%emt 0:00:21]} 30. Qe2 {[%emt 0:00:50]} Kh8 {[%emt 0:04:25]} 31. Qf1 {[%emt 0:02:21]} f4 {[%emt 0:03:12]} 32. Re7 {[%emt 0:00:23]} R5d7 {[%emt 0:00:03]} 33. Rde1 {[%emt 0:00:42]} Bg8 {[%emt 0:02:59]} 34. Qe2 {[%emt 0:02:12]} Rxe7 {[%emt 0:00:33]} 35. Qxe7 {[%emt 0:00:06]} Rd7 {[%emt 0:00:15]} 36. Qe4 {[%emt 0:00:59]} Rd5 {[%emt 0:01:04]} 37. Qe7 {[%emt 0:01:16]} Rd7 {[%emt 0:00:55]} 38. Qh4 {[%emt 0:00:53]} g3 {[%emt 0:01:11]} 39. Re8 {[%emt 0:02:01]} Rd5 {[%emt 0:02:47]} 40. hxg3 {[%emt 0:00:00]} fxg3 {[%emt 0:00:00]} 41. Qe4 {[%emt 0:06:43]} Qf7 {[%emt 0:02:40]} 42. Qe2 {[%emt 0:07:08]} Rh5 {[%emt 0:01:06]} 43. Nxc6 {[%emt 0:09:20]} Bxc3 {[%emt 0:11:30]} 44. Rf8 {[%emt 0:02:14]} Qg6 {[%emt 0:01:08]} 45. Rxg8+ {[%emt 0:01:00]} Qxg8 {[%emt 0:01:54]} 46. Qxh5 {[%emt 0:00:06]} Qe6 {[%emt 0:02:00]} 47. Qf3 {[%emt 0:00:47]} Qa2 {[%emt 0:01:58]} 48. Qf8+ {[%emt 0:00:38]} Kh7 {[%emt 0:00:08]} 49. Qe7+ {[%emt 0:00:06]} Kh8 {[%emt 0:00:21]} 50. Qd8+ {[%emt 0:00:06]} Kh7 {[%emt 0:00:29]} 51. Qd3+ {[%emt 0:00:13]} Kg8 {[%emt 0:00:16]} 52. Qxg3+ {[%emt 0:00:23]} 1-0